bitfinex/quotes_ETHUSD_20251025
["timestamp","ask_amount","ask_price","bid_price","bid_amount"]
[1761397821802,0.3051,3943.7,3943.6,5.88113131]
[1761397821941,0.3051,3943.7,3943.6,5.88013131]
[1761397822676,0.3051,3943.7,3943.6,3.3474]
[1761397823445,0.3051,3943.7,3943.6,3.221]
[1761397824267,0.3051,3943.7,3943.2,2.5359512]
[1761397824484,0.1001,3943.6,3943.4,0.1264]
[1761397825284,0.1001,3943.6,3943.5,3.221]
[1761397826193,0.1001,3943.6,3943.4,0.1264]
[1761397826359,0.1001,3943.6,3943.5,3.22]
[1761397827101,0.1001,3943.6,3943.4,2.66223515]
[1761397827297,0.1001,3943.6,3943.5,3.22]
[1761397829395,0.1001,3943.6,3943.5,3.219]
[1761397831675,0.1001,3943.6,3943.5,3.225]
[1761397833585,0.2265,3943.6,3943.4,0.002]
[1761397833790,0.1264,3943.6,3943.5,3.225]
[1761397834515,0.2265,3943.6,3943.5,3.225]
[1761397836116,0.2265,3943.6,3943.4,0.002]
[1761397836417,0.1264,3943.6,3943.5,3.224]
[1761397836798,0.2265,3943.6,3943.4,0.002]
[1761397836995,0.1264,3943.6,3943.5,3.224]
[1761397837610,0.2265,3943.6,3943.5,3.224]
[1761397841725,0.1001,3943.6,3943.5,3.224]
[1761397842107,0.1001,3943.6,3943.4,0.002]
[1761397842326,0.3314,3943.7,3943.5,3.222]
[1761397842526,0.1001,3943.6,3943.5,3.222]
[1761397843739,0.3314,3943.7,3943.5,3.222]
[1761397844377,0.1001,3943.6,3943.5,3.222]
[1761397849624,0.1001,3943.6,3943.5,4.7772]
[1761397850026,0.1001,3943.6,3943.5,3.222]
[1761397850222,0.3314,3943.7,3943.5,3.222]
[1761397850440,0.4315,3943.7,3943.5,3.222]
[1761397851819,0.1001,3943.6,3943.5,0.002]
[1761397852033,0.3314,3943.7,3943.5,3.221]
[1761397852238,0.1001,3943.6,3943.5,3.221]
[1761397854347,0.3314,3943.7,3943.5,3.221]
[1761397854653,0.4315,3943.7,3943.5,3.221]
[1761397855452,0.3314,3943.7,3943.5,3.221]
[1761397855851,0.1264,3943.7,3943.5,3.221]
[1761397858780,0.54452214,3943.8,3943.5,3.221]
[1761397858965,0.54452214,3943.8,3943.6,0.02535754]
[1761397858966,0.1264,3943.8,3943.6,0.02535754]
[1761397859174,0.54465701,3943.9,3943.5,5.88321462]
[1761397859476,0.1274,3944.0,3943.6,3.00485236]
[1761397859686,0.67205701,3944.0,3943.6,0.4691]
[1761397859981,0.1274,3944.0,3943.7,0.4691]
[1761397860182,0.67205701,3944.0,3943.8,3.219]
[1761397860479,0.1274,3944.0,3943.9,3.219]
[1761397860676,0.67205701,3944.0,3943.9,3.219]
[1761397860876,0.77105701,3944.0,3943.9,3.219]
[1761397861963,0.67205701,3944.0,3943.9,3.219]
[1761397864592,0.1274,3944.0,3943.9,3.219]
[1761397864802,0.67205701,3944.0,3943.9,3.219]
[1761397865090,0.77105701,3944.0,3943.9,3.219]
[1761397865296,3.30655396,3944.0,3943.9,3.219]
[1761397865595,3.30655396,3944.0,3943.5,0.1284]
[1761397865780,0.64365701,3943.9,3943.5,0.1284]
[1761397865983,0.64365701,3943.9,3943.6,3.219]
[1761397866187,0.099,3943.8,3943.7,3.219]
[1761397867697,0.64371552,3943.8,3943.7,3.219]
[1761397869402,0.099,3943.8,3943.7,3.219]
[1761397869591,0.64371552,3943.8,3943.7,3.219]
[1761397869792,0.099,3943.8,3943.7,3.219]
[1761397870094,0.64371552,3943.8,3943.7,3.219]
[1761397870296,0.099,3943.8,3943.7,3.219]
[1761397870600,0.54471552,3943.8,3943.7,3.219]
[1761397870897,0.54471552,3943.9,3943.7,3.219]
[1761397871196,0.54471552,3943.8,3943.7,3.219]
[1761397871385,0.54471552,3943.8,3943.5,0.002]
[1761397871585,0.54471552,3943.8,3943.6,3.219]
[1761397871792,0.64371552,3943.8,3943.6,3.219]
[1761397871973,0.099,3943.8,3943.6,3.219]
[1761397872302,0.64371552,3943.8,3943.6,3.219]
[1761397872480,0.099,3943.8,3943.7,3.219]
[1761397872802,0.64371552,3943.8,3943.7,3.219]
[1761397872999,0.099,3943.8,3943.7,3.219]
[1761397873208,0.64371552,3943.8,3943.7,3.219]
[1761397873369,0.099,3943.8,3943.7,3.219]
[1761397873700,0.64371552,3943.8,3943.7,3.219]
[1761397873897,0.099,3943.8,3943.7,3.219]
[1761397874096,0.54471552,3943.8,3943.7,3.219]
[1761397874301,0.54471552,3943.9,3943.7,3.219]
[1761397874517,0.54471552,3943.8,3943.7,3.219]
[1761397874820,0.54471552,3943.9,3943.7,3.219]
[1761397875009,0.54471552,3943.8,3943.7,3.219]
[1761397875211,0.54471552,3943.9,3943.7,3.219]
[1761397875412,2.76190067,3944.0,3943.7,3.219]
[1761397875719,0.5448004,3943.9,3943.7,3.219]
[1761397875923,2.76190067,3944.0,3943.7,3.219]
[1761397876084,0.54484275,3943.9,3943.7,3.219]
[1761397876286,0.54484275,3943.8,3943.7,3.219]
[1761397876487,0.54484275,3943.9,3943.7,3.219]
[1761397876688,0.54484275,3943.8,3943.7,3.219]
[1761397876884,2.76190067,3944.0,3943.7,3.219]
[1761397876885,0.64384275,3943.9,3943.7,3.219]
[1761397877121,0.54484275,3943.8,3943.7,3.219]
[1761397877323,0.64384275,3943.8,3943.7,3.219]
[1761397877647,0.099,3943.8,3943.7,3.219]
[1761397877923,0.64384275,3943.8,3943.7,3.219]
[1761397878243,0.099,3943.8,3943.7,3.219]
[1761397878424,0.64384275,3943.8,3943.7,3.219]
[1761397878728,0.099,3943.8,3943.7,3.219]
[1761397879024,0.64384275,3943.8,3943.7,3.219]
[1761397879225,0.099,3943.8,3943.7,3.219]
[1761397879523,0.64384275,3943.8,3943.7,3.219]
[1761397879711,0.099,3943.8,3943.7,3.219]
[1761397879901,0.54484275,3943.8,3943.7,3.219]
[1761397880102,0.54484275,3943.9,3943.7,3.219]
[1761397880299,0.54484275,3943.8,3943.7,3.219]
[1761397880522,0.54484275,3943.9,3943.7,3.219]
[1761397880730,0.54484275,3943.8,3943.7,3.219]
[1761397880921,0.54484275,3943.9,3943.7,3.219]
[1761397881126,0.54484275,3943.8,3943.7,3.219]
[1761397881332,0.64384275,3943.9,3943.7,3.219]
[1761397881499,0.54484275,3943.8,3943.7,3.219]
[1761397883111,0.1274,3944.0,3943.7,3.219]
[1761397883112,0.54484275,3943.9,3943.7,3.219]
[1761397885511,0.1274,3944.0,3943.7,3.219]
[1761397885711,0.54495515,3943.9,3943.7,3.219]
[1761397886322,0.54495515,3943.9,3943.8,0.4642]
[1761397886529,0.54495515,3943.9,3943.7,3.219]
[1761397888445,0.54495515,3943.8,3943.7,3.219]
[1761397888762,0.54495515,3943.9,3943.7,3.219]
[1761397888955,0.54495515,3943.8,3943.7,3.219]
[1761397889162,0.54495515,3943.9,3943.7,3.219]
[1761397889333,0.54495515,3943.8,3943.7,3.219]
[1761397889540,0.54495515,3943.9,3943.7,3.219]
[1761397889744,0.54495515,3943.8,3943.7,3.219]
[1761397891578,0.099,3943.8,3943.7,3.219]
[1761397891867,0.64395515,3943.8,3943.7,3.219]
[1761397892074,0.099,3943.8,3943.7,3.219]
[1761397892229,0.64395515,3943.8,3943.7,3.219]
[1761397892430,0.099,3943.8,3943.7,3.219]
[1761397892631,0.64395515,3943.8,3943.7,3.219]
[1761397892857,0.099,3943.8,3943.7,3.218]
[1761397893132,0.54495515,3943.8,3943.7,3.218]
[1761397893470,0.099,3943.8,3943.7,3.218]
[1761397893766,0.54495515,3943.8,3943.7,3.218]
[1761397893963,0.54495515,3943.9,3943.7,3.218]
[1761397894163,0.54495515,3943.8,3943.7,3.218]
[1761397894363,0.54495515,3943.9,3943.7,3.218]
[1761397894529,0.54495515,3943.8,3943.7,3.218]
[1761397894735,0.54495515,3943.9,3943.7,3.218]
[1761397894936,0.54495515,3943.8,3943.7,3.218]
[1761397895236,0.54495515,3943.9,3943.7,3.218]
[1761397895536,0.54495515,3943.8,3943.7,3.218]
[1761397895728,0.54495515,3943.9,3943.7,3.218]
[1761397895935,0.1274,3944.0,3943.8,0.4642]
[1761397896267,0.54486783,3943.9,3943.8,0.4642]
[1761397896429,0.54486783,3943.9,3943.7,3.218]
[1761397896635,0.1274,3944.0,3943.6,0.002]
[1761397896964,0.54486806,3943.9,3943.7,3.218]
[1761397897181,0.54486806,3943.8,3943.7,3.218]
[1761397897470,0.54486806,3943.9,3943.7,3.218]
[1761397897673,0.54486806,3943.8,3943.7,3.218]
[1761397897855,0.54486806,3943.9,3943.7,3.218]
[1761397898055,0.54486806,3943.8,3943.7,3.218]
[1761397898257,0.54486806,3943.9,3943.7,3.218]
[1761397898479,2.76301528,3944.0,3943.7,3.218]
[1761397898480,0.54486806,3943.8,3943.7,3.218]
[1761397898774,0.54486806,3943.9,3943.7,3.218]
[1761397898973,0.2275,3944.0,3943.7,3.218]
[1761397899142,0.54485371,3943.9,3943.7,3.218]
[1761397899349,0.54485371,3943.8,3943.7,3.218]
[1761397899557,0.54485371,3943.9,3943.7,3.218]
[1761397899757,0.54485371,3943.8,3943.7,3.218]
[1761397899981,0.54485371,3943.9,3943.7,3.218]
[1761397900181,0.54485371,3943.8,3943.7,3.218]
[1761397900382,0.54485371,3943.9,3943.7,3.218]
[1761397900580,0.54485371,3943.8,3943.7,3.6589]
[1761397900741,0.54485371,3943.9,3943.7,3.6589]
[1761397900943,0.54485371,3943.8,3943.7,3.6589]
[1761397901146,0.54485371,3943.9,3943.7,3.218]
[1761397901352,0.54485371,3943.8,3943.7,3.218]
[1761397901579,0.54485371,3943.9,3943.7,3.218]
[1761397901779,0.54485371,3943.8,3943.7,3.218]
[1761397901977,0.54488249,3943.9,3943.7,3.218]
[1761397902151,0.54491375,3943.8,3943.7,3.218]
[1761397902351,0.54491375,3943.9,3943.7,3.218]
[1761397902680,0.54491375,3943.8,3943.7,3.218]
[1761397902979,0.54491375,3943.9,3943.7,3.218]
[1761397903182,0.54491375,3943.8,3943.7,3.218]
[1761397903381,0.54491375,3943.9,3943.7,3.218]
[1761397903560,0.1274,3944.0,3943.7,3.218]
[1761397903561,0.54491375,3943.8,3943.7,3.218]
[1761397903751,0.54491375,3943.9,3943.7,3.218]
[1761397903954,0.54491375,3943.8,3943.7,3.218]
[1761397904172,0.54491375,3943.9,3943.7,3.218]
[1761397904374,0.54491375,3943.8,3943.7,3.218]
[1761397904587,0.54491375,3943.9,3943.7,3.218]
[1761397904755,0.54491375,3943.8,3943.6,0.002]
[1761397904960,0.54491375,3943.9,3943.7,3.218]
[1761397905259,0.54491375,3943.8,3943.7,3.218]
[1761397905454,0.54491375,3943.9,3943.7,3.218]
[1761397905660,0.54493772,3943.8,3943.7,3.218]
[1761397905859,0.54493772,3943.9,3943.7,3.218]
[1761397906184,0.54493772,3943.8,3943.7,3.218]
[1761397906381,0.54493772,3943.9,3943.7,3.218]
[1761397906585,0.54493772,3943.8,3943.7,3.218]
[1761397906756,0.54493772,3943.9,3943.7,3.218]
[1761397906962,0.1274,3944.0,3943.7,3.218]
[1761397907163,0.54498881,3943.9,3943.7,3.218]
[1761397907683,0.3041,3943.9,3943.7,3.218]
[1761397907889,0.5449894,3943.8,3943.6,0.002]
[1761397908053,0.7724894,3943.8,3943.7,3.218]
[1761397908381,0.7724894,3943.8,3943.6,0.002]
[1761397908382,2.53568983,3943.7,3943.6,0.002]
[1761397908588,3.18177923,3943.7,3943.6,0.002]
[1761397914491,0.5449894,3943.7,3943.6,0.002]
[1761397914660,0.6713894,3943.8,3943.6,0.002]
[1761397914861,0.1264,3943.8,3943.6,0.002]
[1761397915062,0.69673167,3943.8,3943.6,0.002]
[1761397915398,0.15174227,3943.8,3943.6,0.002]
[1761397915694,0.69673167,3943.8,3943.6,0.002]
[1761397915896,0.1264,3943.8,3943.6,0.4429]
[1761397916067,0.6713894,3943.8,3943.6,0.4429]
[1761397916398,0.1264,3943.8,3943.6,0.4429]
[1761397916600,0.6713894,3943.8,3943.6,0.4429]
[1761397916896,0.1264,3943.8,3943.6,0.4429]
[1761397917072,0.6713894,3943.8,3943.6,0.4429]
[1761397917274,0.1264,3943.8,3943.6,0.4429]
[1761397917475,0.6713894,3943.8,3943.6,0.002]
[1761397917675,0.1264,3943.8,3943.6,0.002]
[1761397917911,0.6713894,3943.8,3943.6,0.002]
[1761397918114,0.1264,3943.8,3943.7,3.217]
[1761397918328,0.69673167,3943.8,3943.7,3.217]
[1761397918532,0.15174227,3943.8,3943.7,3.217]
[1761397918670,0.69673167,3943.8,3943.7,3.217]
[1761397918870,0.15174227,3943.8,3943.7,3.217]
[1761397919089,0.69673167,3943.8,3943.7,3.217]
[1761397919411,0.15174227,3943.8,3943.7,3.217]
[1761397919711,0.69673167,3943.8,3943.7,3.217]
[1761397919892,0.15174227,3943.8,3943.7,3.217]
[1761397920094,0.69673167,3943.8,3943.7,3.217]
[1761397920293,0.15174227,3943.8,3943.7,3.217]
[1761397920494,0.69673167,3943.8,3943.7,3.217]
[1761397920690,0.15174227,3943.8,3943.7,3.217]
[1761397920891,0.69673167,3943.8,3943.7,3.217]
[1761397921094,0.15174227,3943.8,3943.7,3.217]
[1761397921291,3.3344572,3943.8,3943.7,3.217]
[1761397921968,0.69673167,3943.8,3943.6,0.002]
[1761397922197,0.1021,3943.7,3943.6,0.002]
[1761397922400,0.6470894,3943.7,3943.6,0.002]
[1761397922701,3.18277923,3943.7,3943.6,0.002]
[1761397923106,0.6470894,3943.7,3943.6,0.002]
[1761397924820,0.69673167,3943.8,3943.6,0.002]
[1761397925707,3.23236515,3943.8,3943.6,0.002]
[1761397925893,0.5449894,3943.7,3943.6,0.002]
[1761397926568,0.69673167,3943.8,3943.6,0.002]
[1761397928302,3.23235829,3943.8,3943.6,0.002]
[1761397928473,0.5449894,3943.7,3943.6,0.002]
[1761397928807,0.69673167,3943.8,3943.6,0.002]
[1761397932009,3.23238059,3943.8,3943.6,0.002]
[1761397932210,0.5449894,3943.7,3943.6,0.002]
[1761397933309,3.08067923,3943.7,3943.6,3.219]
[1761397934010,0.5449894,3943.7,3943.6,3.219]
[1761397934884,0.5449894,3943.7,3943.6,3.98044161]
[1761397938525,0.5449894,3943.7,3943.6,4.41644161]
[1761397941323,0.54495264,3943.7,3943.6,4.41644161]
[1761397949046,0.54495264,3943.7,3943.6,3.98044161]
[1761397950107,0.54495264,3943.7,3943.6,3.219]
[1761397950312,0.54495264,3943.7,3943.6,3.76395264]
[1761397950727,0.54495264,3943.7,3943.6,3.219]
[1761397951110,0.54495264,3943.7,3943.6,3.655]
[1761397957481,0.1264,3943.8,3943.6,3.655]
[1761397957686,0.54495264,3943.7,3943.6,3.219]
[1761397957985,0.1264,3943.8,3943.6,3.219]
[1761397958157,0.54495264,3943.7,3943.6,3.219]
[1761397958763,0.54495264,3943.7,3943.6,3.6859]
[1761397960487,0.67135264,3943.9,3943.6,4.23085264]
[1761397960684,0.67135264,3943.9,3943.7,0.4669]
[1761397961013,0.54495264,3943.9,3943.7,0.4669]
[1761397961303,0.54495264,3943.9,3943.7,1.22822953]
[1761397963802,0.54595264,3944.0,3943.7,1.22822953]
[1761397964264,0.001,3944.0,3943.7,1.22822953]
[1761397964464,0.54595264,3944.0,3943.7,1.22822953]
[1761397968824,0.54595264,3944.0,3943.7,3.76390087]
[1761397968996,0.54595264,3944.0,3943.8,0.4669]
[1761397969197,0.54595264,3944.0,3943.9,3.214]
[1761397971715,0.54595264,3944.0,3943.9,3.6809]
[1761397972115,0.54595264,3944.0,3943.9,3.214]
[1761397972296,0.001,3944.0,3943.9,3.214]
[1761397972621,0.54595264,3944.0,3943.9,3.214]
[1761397975093,0.001,3944.0,3943.9,3.214]
[1761397975903,0.54595264,3944.0,3943.9,3.214]
[1761397976335,0.54595264,3944.0,3943.7,1.22822953]
[1761397976646,0.54595264,3944.0,3943.7,0.76132953]
[1761397976647,0.87529491,3943.9,3943.7,0.76132953]
[1761397976942,0.87529491,3943.9,3943.8,3.214]
[1761397977134,0.89959491,3943.9,3943.8,3.214]
[1761397977850,1.00169491,3943.9,3943.8,3.214]
[1761397980328,0.69669491,3943.9,3943.8,3.214]
[1761397980529,0.1264,3943.9,3943.8,3.214]
[1761397981353,0.67135264,3943.9,3943.8,3.214]
[1761397981668,0.1264,3943.9,3943.8,3.214]
[1761397981955,0.67135264,3943.9,3943.8,3.214]
[1761397982273,0.1264,3943.9,3943.8,3.214]
[1761397984543,0.67135264,3943.9,3943.8,3.214]
[1761397984987,0.1264,3943.9,3943.8,3.214]
[1761397985673,0.1264,3943.9,3943.8,3.6508]
[1761397986680,0.67135264,3943.9,3943.8,3.214]
[1761397987754,0.67135264,3943.9,3943.8,3.216]
[1761397989353,6.88958717,3943.9,3943.8,0.002]
[1761397990448,3.61425271,3943.9,3943.8,0.002]
[1761397990643,6.99111246,3943.9,3943.8,0.002]
[1761397991886,6.88958717,3943.9,3943.8,0.002]
[1761397993056,4.25502593,3943.9,3943.8,0.002]
[1761397993652,4.35655018,3943.9,3943.8,0.002]
[1761397995554,4.45555018,3943.9,3943.8,0.002]
[1761397995884,4.35402593,3943.9,3943.8,0.002]
[1761397996085,6.88958717,3943.9,3943.8,0.002]
[1761397996252,4.35402593,3943.9,3943.8,0.002]
[1761397996453,6.91492944,3943.9,3943.8,0.002]
[1761397996652,6.99111142,3943.9,3943.8,0.002]
[1761397997169,4.45555018,3943.9,3943.8,0.002]
[1761397998471,7.01645369,3943.9,3943.8,0.002]
[1761397998673,6.99111142,3943.9,3943.8,0.002]
[1761397999400,7.11751142,3943.9,3943.8,0.002]
[1761398019711,7.01851142,3943.9,3943.8,0.002]
[1761398020449,3.64165167,3943.9,3943.8,0.002]
[1761398020608,3.66699394,3943.9,3943.8,0.002]
[1761398025341,4.44718474,3943.9,3943.8,0.002]
[1761398027061,3.76599394,3943.9,3943.8,0.002]
[1761398027433,3.76553437,3943.9,3943.8,0.002]
[1761398030958,3.66653437,3943.9,3943.8,0.002]
[1761398031278,3.76553437,3943.9,3943.8,0.002]
[1761398034677,3.66653437,3943.9,3943.8,0.002]
[1761398037168,3.76553437,3943.9,3943.8,0.002]
[1761398037784,3.66653437,3943.9,3943.8,0.002]
[1761398040778,4.34685819,3943.9,3943.8,0.002]
[1761398043306,1.35168341,3943.9,3943.8,0.002]
[1761398043458,0.77241732,3943.9,3943.8,0.4677]
[1761398043669,0.67089307,3943.9,3943.8,0.4677]
[1761398044390,0.54449307,3943.9,3943.8,0.4677]
[1761398047091,0.1274,3944.0,3943.8,0.4677]
[1761398047602,0.67189307,3944.0,3943.8,0.4677]
[1761398047759,0.1274,3944.0,3943.8,0.4677]
[1761398048157,0.67189307,3944.0,3943.8,0.4677]
[1761398048395,0.1274,3944.0,3943.8,0.4677]
[1761398048698,0.1274,3944.0,3943.8,3.89107898]
[1761398048886,0.1274,3944.0,3943.8,1.35545761]
[1761398048887,0.67189307,3944.0,3943.8,1.35545761]
[1761398049076,0.1274,3944.0,3943.9,0.4633]
[1761398050562,0.001,3944.0,3943.9,0.4633]
[1761398052897,0.001,3944.0,3943.9,2.99886124]
[1761398053101,0.001,3944.0,3943.9,3.92797042]
[1761398057278,0.0774,3944.2,3944.1,0.2278]
[1761398057593,0.0774,3944.2,3944.1,3.4348]
[1761398057796,0.001,3944.4,3944.1,3.8981]
[1761398057991,0.1264,3944.3,3944.2,0.4633]
[1761398058503,0.001,3944.4,3944.2,0.4633]
[1761398058806,0.001,3944.4,3944.2,1.19957022]
[1761398058807,0.1274,3944.4,3944.2,1.19957022]
[1761398059295,0.1274,3944.4,3944.2,0.4633]
[1761398059499,0.1274,3944.4,3944.3,0.4633]
[1761398059903,0.001,3944.4,3944.3,0.4633]
[1761398060407,0.001,3944.4,3944.3,2.9986041]
[1761398068033,0.001,3944.4,3944.3,0.4633]
[1761398068242,0.001,3944.4,3944.3,1.38547454]
[1761398070145,0.001,3944.4,3944.3,3.92077864]
[1761398070444,0.001,3944.4,3944.3,1.38547454]
[1761398072162,0.001,3944.4,3944.3,3.92077864]
[1761398078055,0.001,3944.4,3944.3,1.38547454]
[1761398079658,0.001,3944.4,3944.3,4.12717454]
[1761398079886,0.001,3944.4,3944.3,3.205]
[1761398080240,0.1274,3944.4,3944.3,3.205]
[1761398080440,0.001,3944.4,3944.3,3.205]
[1761398089063,0.001,3944.4,3944.3,3.6643]
[1761398089677,0.001,3944.4,3944.3,6.1996041]
[1761398090193,0.001,3944.4,3944.3,3.6643]
[1761398091101,0.001,3944.4,3944.3,6.1996041]
[1761398093066,0.001,3944.4,3944.3,3.205]
[1761398094085,0.001,3944.4,3944.3,5.7403041]
[1761398098617,0.001,3944.4,3944.3,6.1996041]
[1761398100725,0.001,3944.4,3944.3,3.205]
[1761398103128,0.001,3944.4,3944.3,3.203]
[1761398103312,0.1,3944.4,3944.3,3.203]
[1761398103622,0.64464587,3944.4,3944.3,3.203]
[1761398104203,0.54564587,3944.4,3944.1,0.002]
[1761398104409,0.64364587,3944.3,3944.2,3.203]
[1761398106243,0.64364587,3944.3,3944.1,0.002]
[1761398106465,0.64364587,3944.3,3944.2,3.203]
[1761398107459,0.001,3944.4,3944.2,3.203]
[1761398107760,0.54553778,3944.4,3944.2,3.203]
[1761398107961,0.001,3944.4,3944.2,3.203]
[1761398108477,0.54553778,3944.4,3944.2,3.203]
[1761398109332,0.54553778,3944.4,3944.3,3.203]
[1761398114182,0.001,3944.4,3944.3,3.203]
[1761398114695,0.54548693,3944.4,3944.3,3.203]
[1761398116670,0.64448693,3944.4,3944.3,3.203]
[1761398118002,0.54548693,3944.4,3944.3,3.203]
[1761398120293,0.54548693,3944.4,3944.3,3.202]
[1761398120496,0.64448693,3944.4,3944.3,3.202]
[1761398123502,0.64448693,3944.4,3944.1,0.002]
[1761398123688,0.54548693,3944.4,3944.3,3.202]
[1761398124088,0.54548693,3944.4,3944.1,0.002]
[1761398124291,0.54548693,3944.4,3944.3,3.202]
[1761398125607,0.64448693,3944.4,3944.3,3.202]
[1761398126529,0.54548693,3944.4,3944.3,3.202]
[1761398130512,0.54548693,3944.4,3944.3,3.6729]
[1761398131318,0.001,3944.4,3944.3,3.6729]
[1761398131815,0.001,3944.4,3944.3,3.202]
[1761398132422,0.5456633,3944.4,3944.3,3.202]
[1761398134217,0.5456633,3944.4,3944.3,3.201]
[1761398136222,0.5456633,3944.4,3944.3,3.6719]
[1761398136587,0.5456633,3944.4,3944.3,6.2072041]
[1761398137524,0.5456633,3944.4,3944.3,3.6719]
[1761398138449,0.001,3944.4,3944.3,3.6719]
[1761398139147,0.001,3944.4,3944.3,3.201]
[1761398139148,0.54565507,3944.4,3944.3,3.201]
[1761398140448,0.54565507,3944.4,3944.3,3.6357]
[1761398140652,0.54565507,3944.4,3944.3,7.04185348]
[1761398143318,0.54565507,3944.4,3944.3,4.50654938]
[1761398143519,0.54565507,3944.4,3944.3,7.04185348]
[1761398143861,0.54565507,3944.4,3944.3,6.1710041]
[1761398144232,0.001,3944.4,3944.3,6.1710041]
[1761398146959,0.001,3944.4,3944.3,3.201]
[1761398148322,0.001,3944.4,3944.3,3.2]
[1761398148518,0.001,3944.4,3944.3,6.61869949]
[1761398149158,0.001,3944.4,3944.3,1.31809539]
[1761398149359,0.001,3944.4,3944.3,4.51809539]
[1761398152559,0.001,3944.4,3944.3,7.05339949]
[1761398154481,0.001,3944.4,3944.3,4.51809539]
[1761398155859,0.001,3944.4,3944.3,7.05339949]
[1761398157166,0.001,3944.4,3944.3,4.51809539]
[1761398158878,0.001,3944.4,3944.3,0.88339539]
[1761398159183,0.001,3944.4,3944.3,3.199]
[1761398159783,0.001,3944.4,3944.2,0.1264]
[1761398159944,0.001,3944.4,3944.3,3.199]
[1761398162261,0.001,3944.4,3944.3,6.1845041]
[1761398164162,0.001,3944.4,3944.3,3.6492]
[1761398164364,0.001,3944.4,3944.3,4.02696]
[1761398164543,0.001,3944.4,3944.3,3.57676]
[1761398165253,0.001,3944.4,3944.3,6.1120641]
[1761398165958,0.001,3944.4,3944.3,6.5622641]
[1761398167055,0.001,3944.4,3944.3,4.02696]
[1761398167485,0.001,3944.4,3944.3,6.5622641]
[1761398168955,0.001,3944.4,3944.3,8.1174641]
[1761398169361,0.001,3944.4,3944.3,8.21893556]
[1761398174599,0.00032044,3944.8,3944.7,2.53504702]
[1761398174786,0.00032044,3944.8,3944.7,6.11295172]
[1761398174986,0.00032044,3944.8,3944.7,6.54525172]
[1761398177484,0.00032044,3944.8,3944.7,8.10045172]
[1761398180690,0.00032044,3944.8,3944.7,4.90245172]
[1761398180891,0.00032044,3944.8,3944.7,8.09945172]
[1761398186360,0.00032044,3944.8,3944.7,8.93973172]
[1761398186656,0.00032044,3944.8,3944.7,9.53984535]
[1761398186870,0.00032044,3944.8,3944.7,10.90517978]
[1761398187071,0.00032044,3944.8,3944.7,11.03473819]
[1761398187271,0.00032044,3944.8,3944.7,9.66940376]
[1761398188446,0.00032044,3944.8,3944.7,9.06929013]
[1761398190270,0.00032044,3944.8,3944.7,5.61633172]
[1761398190487,0.00032044,3944.8,3944.7,8.81233172]
[1761398192476,0.00032044,3944.8,3944.7,5.61633172]
[1761398192679,0.00032044,3944.8,3944.7,8.81233172]
[1761398194307,0.00032044,3944.8,3944.7,3.12195172]
[1761398194503,0.00032044,3944.8,3944.7,6.31695172]
[1761398195004,0.00032044,3944.8,3944.7,4.67715172]
[1761398195303,0.00032044,3944.8,3944.7,7.53875172]
[1761398196001,0.00032044,3944.8,3944.7,7.97105172]
[1761398196208,0.00032044,3944.8,3944.7,7.53875172]
[1761398197011,0.00032044,3944.8,3944.7,7.97105172]
[1761398200208,0.00032044,3944.8,3944.7,4.77605172]
[1761398200507,0.00032044,3944.8,3944.7,8.09745172]
[1761398200710,0.00032044,3944.8,3944.7,2.66144702]
[1761398200895,0.00032044,3944.8,3944.7,5.85644702]
[1761398204919,0.00032044,3944.8,3944.7,7.85824702]
[1761398206625,0.00032044,3944.8,3944.7,7.95970561]
[1761398209213,0.00032044,3944.8,3944.7,8.46658561]
[1761398209442,0.00032044,3944.8,3944.7,10.12882356]
[1761398212343,0.00032044,3944.8,3944.7,6.93382356]
[1761398212521,0.00032044,3944.8,3944.7,10.12782356]
[1761398212723,0.00032044,3944.8,3944.7,13.50048913]
[1761398220565,0.00032044,3944.8,3944.7,10.30648913]
[1761398220740,0.00032044,3944.8,3944.7,13.05388913]
[1761398221057,0.00032044,3944.8,3944.7,13.49818913]
[1761398222763,0.00032044,3944.8,3944.7,13.05388913]
[1761398223256,0.00032044,3944.8,3944.7,13.49818913]
[1761398225443,0.00032044,3944.8,3944.7,9.35300913]
[1761398225774,0.00032044,3944.8,3944.7,12.54700913]
[1761398226156,0.00032044,3944.8,3944.7,12.99130913]
[1761398226374,0.00032044,3944.8,3944.7,12.88985054]
[1761398228680,0.00032044,3944.8,3944.7,12.88885054]
[1761398228974,0.00032044,3944.8,3944.7,13.39573054]
[1761398229176,0.00032044,3944.8,3944.7,14.76106497]
[1761398230385,0.00032044,3944.8,3944.7,13.75939549]
[1761398230675,0.00032044,3944.8,3944.7,13.86083941]
[1761398230839,0.00032044,3944.8,3944.7,13.49717446]
[1761398231382,0.00032044,3944.8,3944.7,9.85987446]
[1761398231582,0.00032044,3944.8,3944.7,13.39123054]
[1761398237813,0.00032044,3944.8,3944.7,10.19823054]
[1761398238131,0.00032044,3944.8,3944.7,13.39123054]
[1761398248821,0.00032044,3944.8,3944.7,10.19823054]
[1761398249021,0.00032044,3944.8,3944.7,13.39023054]
[1761398249432,0.00032044,3944.8,3944.7,9.75843054]
[1761398249633,0.00032044,3944.8,3944.7,12.95043054]
[1761398250032,0.00032044,3944.8,3944.7,13.39023054]
[1761398250694,0.00032044,3944.8,3944.7,12.95043054]
[1761398251066,0.00032044,3944.8,3944.7,13.39023054]
[1761398251264,0.00032044,3944.8,3944.7,12.95043054]
[1761398251833,0.00032044,3944.8,3944.7,9.75843054]